Cogmind - Beta 17.1 @@@ ROGUE MODE // 2026.09.13 @ 14:12:50 Player: UnderDoug Result: Destroyed by G-34 Mercenary with Small Laser Performance ------------- Evolutions (0) 0 Regions Visited (3) 600 Robots Destroyed (41) 205 Value Destroyed (1228) 1228 Prototype IDs (1) 20 Alien Tech Used (0) 0 Bonus (0) 0 TOTAL SCORE: 2053 Bonus ------- None Cogmind --------- Core Integrity 0/250 Matter 260/300 Energy 170/170 System Corruption 0% Temperature Cool (6) Movement Walking (130) Location -10/Subcaves Parts ------- > --- POWER (1) -------- Makeshift Power Source > --- PROPULSION (2) --- Cargo Legs > --- UTILITY (2+2) ---- Large Storage Unit Structural Scanner Propulsion Shielding (+) Weapon Shielding (+) > --- WEAPON (2) ------- Subdweller Shrapnel Launcher Hammer > --- INVENTORY (15) --- Subdweller Power Source Light Treads Light Treads Spiked Treads Scrap Suit Weight Redist. System Subdweller Optics ECM Suite Scrap Shield Battle Rifle Battle Cannon Datajack Mining Laser Peak State ------------ > --- POWER ------------ Makeshift Power Source > --- PROPULSION ------- Cargo Legs > --- UTILITY ---------- Large Storage Unit Structural Scanner Propulsion Shielding Weapon Shielding > --- WEAPON ----------- Subdweller Shrapnel Launcher Hammer > --- INVENTORY -------- Subdweller Power Source Light Treads Light Treads Spiked Treads Scrap Suit Weight Redist. System Subdweller Optics ECM Suite Scrap Shield Battle Rifle Battle Cannon Datajack Mining Laser [Rating: 29] Favorites ----------- Power Ion Engine Engine Ion Engine Power Core Light Nuclear Core Propulsion Aluminum Leg Treads Light Treads Leg Aluminum Leg Utility Seismic Detector Device Seismic Detector Storage Large Storage Unit Protection Propulsion Shielding Weapon Hammer Energy Gun Spread Laser Ballistic Gun Assault Rifle Ballistic Cannon Battle Cannon Launcher Grenade Launcher Special Weapon Mining Laser Impact Weapon Hammer Build | -11 -10 -10 -10 ------- Run | Yrd Mat Min Sub Slots Evolved . | . . . . Power . | . . . . Propulsion . | . . . . Utility . | . . . . Weapon . | . . . . Parts Attached 35 | 8 10 4 13 Power 7 | 1 2 1 3 Engine 6 | 1 1 1 3 Core 1 | . 1 . . Reactor . | . . . . Propulsion 8 | 2 3 2 1 Treads 4 | . 2 2 . Leg 4 | 2 1 . 1 Wheel . | . . . . Hover . | . . . . Flight . | . . . . Utility 7 | 2 2 . 3 Device 3 | 1 1 . 1 Storage 2 | 1 1 . . Processor . | . . . . Hackware . | . . . . Protection 2 | . . . 2 Artifact . | . . . . Weapon 13 | 3 3 1 6 Energy Gun 3 | 2 1 . . Energy Cannon . | . . . . Ballistic Gun 3 | 1 . . 2 Ballistic Cannon 1 | . . . 1 Launcher 3 | . 1 . 2 Special Weapon 1 | . . . 1 Impact Weapon 2 | . 1 1 . Slashing Weapon . | . . . . Piercing Weapon . | . . . . Special Melee Weapon . | . . . . Unidentified Prototypes 1 | . . . 1 Parts Lost 8 | . 3 . 5 Power 3 | . 1 . 2 Propulsion 1 | . 1 . . Utility 1 | . . . 1 Weapon 3 | . 1 . 2 Highest Loss Streak 2 | . 2 . 1 To Critical Strikes . | . . . . Average Backups 12 | 4 12 14 13 Power . | . . 1 . Propulsion 2 | 2 3 2 2 Utility 4 | . 3 5 5 Weapon 3 | . 3 4 3 Tool/Special . | . . . . Unused Backups 17 | . 4 2 11 Power . | . . . . Propulsion 6 | . 3 2 1 Utility 6 | . 1 . 5 Weapon 4 | . . . 4 Tool/Special 1 | . . . 1 Average Slot Usage (%) 95 | . 99 100 91 Engine 8 | . 4 14 11 Core 4 | . 9 . . Treads 9 | . 5 28 10 Leg 12 | . 22 . 6 Device 13 | . 14 14 12 Storage 13 | . 14 14 12 Protection 6 | . . . 13 Energy Gun 6 | . 9 14 1 Ballistic Gun 3 | . 5 . 2 Launcher 3 | . 1 . 6 Impact Weapon 11 | . 11 14 12 Peak Build Rating 29 | 7 12 12 29 Average Rating 14 | 5 10 10 20 On Entrance 7 | . 7 10 11 Avg Prop Armor Cover (%) . | . . . . Naked Turns . | . . . . Heaviest Build 38 | 15 32 34 38 Greatest Support 55 | 20 40 40 55 Greatest Overweight (x) 3 | 1 3 . . Average Overweight (x) . | . . . . Largest Inventory Capacity 15 | 8 15 15 15 Average Capacity 14 | 7 13 15 15 Most Carried 15 | 7 15 15 15 Average Carried 13 | 4 13 14 14 Final Capacity 15 | 8 15 15 15 Final Carried 15 | 7 15 15 15 Class Distribution -------------------- 100% | Mutant Dominant Class ---------------- Mutant | -10/Materials Mutant | -10/Mines Mutant | -10/Subcaves Resources | -11 -10 -10 -10 ----------- Run | Yrd Mat Min Sub Matter Collected 1329 | 295 253 30 751 Remotely . | . . . . Salvage Created 993 | 112 328 38 515 Parts 65 | 4 24 3 34 Haulers Intercepted . | . . . . Recyclers Shooed 1 | 1 . . . Parts Field Recycled . | . . . . Retrieved Matter . | . . . . Parts Self-Destructed 5 | . . . 5 Prevented . | . . . . Parts Restored . | . . . . Kills | -11 -10 -10 -10 ------- Run | Yrd Mat Min Sub Combat Hostiles Destroyed 32 | . 10 1 21 Melee 4 | . 2 . 2 Guns 8 | . 5 1 2 AOE 20 | . 3 . 17 Classes Destroyed 10 | 2 6 1 1 Worker 2 | . 2 . . Builder 1 | . 1 . . Tunneler 1 | 1 . . . Recycler 1 | 1 . . . Operator 1 | . 1 . . Watcher 3 | . 3 . . Swarmer 6 | . 3 . 3 Grunt 8 | . 7 . 1 Sentry 2 | . . 1 1 Subdweller 16 | . . . 16 Best Kill Streak 6 | 2 6 1 3 Combat Bots Only 3 | . 3 1 3 Max Kills in Single Turn 3 | 1 3 1 2 Gunslinging . | . . . . Exploded 2 | . 1 . 2 Melee 1 | . 1 . 1 Uniques/NPCs Destroyed . | . . . . Combat | -11 -10 -10 -10 -------- Run | Yrd Mat Min Sub Hostile Shots Fired 133 | . 77 6 50 Missed 49 | . 30 1 18 Hits 84 | . 47 5 32 Projectile 84 | . 47 5 32 Critical Strikes 1 | . 1 . . Damage Taken 1622 | . 659 76 887 Core 251 | . 73 . 178 Absorbed by Shields . | . . . . Redirected to Shielding 49 | . . . 49 Core Remaining (%) 100 | 100 . . . Volleys Fired 119 | 5 39 3 72 Largest 2 | 2 2 1 1 Hottest 100 | 70 70 65 100 Shots Fired 134 | 10 49 3 72 Gun 79 | 10 43 3 23 Cannon . | . . . . Launcher 44 | . 6 . 38 Special 11 | . . . 11 Kinetic 66 | 5 26 . 35 Thermal 35 | 4 17 3 11 Explosive 32 | . 6 . 26 Electromagnetic 1 | 1 . . . Robot Hit Streak 22 | 3 8 7 22 Robot Miss Streak 7 | 4 7 1 2 Penetration Max . | . . . . Secondary Targets . | . . . . Shots Hit Robots 84 | 4 35 3 42 Core Hits 81 | 3 33 5 40 Critical Kills 2 | . . . 2 Critical Parts Destroyed . | . . . . Critical Strikes 3 | . . . 3 Destroy 2 | . . . 2 Smash 1 | . . . 1 Melee Attacks 13 | . 10 . 3 Impact 13 | . 10 . 3 Slashing . | . . . . Piercing . | . . . . Sneak Attacks . | . . . . Combat Hostiles . | . . . . Follow-up Attacks . | . . . . Damage Inflicted 3372 | 76 1086 56 2154 Guns 740 | 76 351 56 257 Cannons . | . . . . Explosions 2304 | . 475 . 1829 Melee 328 | . 260 . 68 Ramming . | . . . . Kinetic 975 | 36 159 . 780 Thermal 273 | 25 192 56 . Explosive 1781 | . 475 . 1306 Electromagnetic 15 | 15 . . . Impact 328 | . 260 . 68 Slashing . | . . . . Piercing . | . . . . Highest Corruption . | . . . . Average Corruption . | . . . . Corruption Purged . | . . . . Corruption Blocked . | . . . . Overload Shots . | . . . . Overflow Damage 125 | . 29 . 96 Projectiles . | . . . . Explosions 111 | . 15 . 96 Melee 14 | . 14 . . Knockbacks 1 | . 1 . . Impact 1 | . 1 . . Kinetic . | . . . . Secondary . | . . . . Self-Inflicted Damage 226 | . . . 226 Shots 6 | . . . 6 Rammed . | . . . . Targets Rammed . | . . . . Kicked . | . . . . Crushed . | . . . . Highest Temperature 242 | 18 242 81 . Average Temperature 74 | 10 91 42 . Received Heat Transfer 462 | . 342 18 102 Siege Activations . | . . . . Martial Activations . | . . . . Shielding Activations . | . . . . Robots Disrupted . | . . . . Combat Hostiles . | . . . . Robots Corrupted . | . . . . Combat Hostiles . | . . . . Parts Fried . | . . . . Impact Corruptions 1 | . 1 . . Robots Melted . | . . . . Combat Hostiles . | . . . . Parts Melted 1 | . . . 1 Heat Transferred 443 | 74 294 75 . Parts Sabotaged . | . . . . Parts Stolen . | . . . . Parts Stripped . | . . . . Power Chain Reactions . | . . . . Alert | -11 -10 -10 -10 ------- Run | Yrd Mat Min Sub Maximum Alert Level . | . . . . Low Security (%) 100 | 100 100 100 . Level 1 . | . . . . Level 2 . | . . . . Level 3 . | . . . . Level 4 . | . . . . Level 5 . | . . . . High Security . | . . . . Max Security . | . . . . Peak Influence 139 | 10 139 20 . Initial . | . . . . Average 32 | . 40 2 . Influence Increases 517 | 10 367 20 120 Destroy 0b10 Robot/C 320 | . 200 20 100 Destroy 0b10 Robot/NC 45 | 10 35 . . Destroy Leader 76 | . 56 . 20 Successful Hack 11 | . 11 . . Disable Machine 45 | . 45 . . Destroy Structure 20 | . 20 . . Influence Decreases 517 | 10 367 20 120 Time Decay 507 | 10 357 20 120 Lost Part 10 | . 10 . . Squads Dispatched 1 | . 1 . . Investigation . | . . . . Extermination . | . . . . Reinforcement 1 | . 1 . . Assault . | . . . . Garrison . | . . . . Intercept . | . . . . Searches Triggered . | . . . . Construction Impeded . | . . . . Haulers Reinforced . | . . . . Active Scanning Responses . | . . . . Cargo Convoy Interrupts . | . . . . Stealth | -11 -10 -10 -10 --------- Run | Yrd Mat Min Sub Distress Signals 2 | . 2 . . Communications Jammed . | . . . . Distress Signals . | . . . . Times Spotted 40 | . 17 2 21 Peak Tracking Total 4 | . 4 2 4 Tactical Retreats . | . . . . Traps | -11 -10 -10 -10 ------- Run | Yrd Mat Min Sub Traps Triggered 3 | . 2 . 1 Indirectly . | . . . . Trap Hack Attempts . | . . . . Triggered . | . . . . Disarmed . | . . . . Reprogrammed . | . . . . Reused . | . . . . Traps Extracted . | . . . . Installed . | . . . . Triggered . | . . . . Machines | -11 -10 -10 -10 ---------- Run | Yrd Mat Min Sub Machines Disabled 3 | . 3 . . Max in Single Turn 1 | . 1 . . Machines Repaired . | . . . . Machines Dismantled . | . . . . Machines Sabotaged . | . . . . Overloaded Fab Kills . | . . . . Hacking | -11 -10 -10 -10 --------- Run | Yrd Mat Min Sub Machines Accessed 7 | . 7 . . Terminals 6 | . 6 . . Fabricators . | . . . . Repair Stations . | . . . . Recycling Units 1 | . 1 . . Scanalyzers . | . . . . Garrison Access . | . . . . Total Hacks 16 | . 16 . . Successful 8 | . 8 . . Failed 8 | . 8 . . Catastrophic 2 | . 2 . . Database Lockouts . | . . . . Manual 13 | . 13 . . Terminals 14 | . 14 . . Fabricators . | . . . . Repair Stations . | . . . . Recycling Units 2 | . 2 . . Scanalyzers . | . . . . Garrison Access . | . . . . Terminal Hacks 3 | . 3 . . Record 1 | . 1 . . Robot Schematic 1 | . 1 . . Zone Layout 1 | . 1 . . Fabricator Hacks . | . . . . Repair Station Hacks . | . . . . Recycling Unit Hacks . | . . . . Scanalyzer . | . . . . Garrison Access Hacks . | . . . . Unauthorized Hacks 5 | . 5 . . Terminals 5 | . 5 . . Skim 5 | . 5 . . Fabricators . | . . . . Repair Stations . | . . . . Recycling Units . | . . . . Scanalyzers . | . . . . Garrison Access . | . . . . Data Cores Recovered . | . . . . Used . | . . . . Hacking Detections 6 | . 6 . . Full Trace Events . | . . . . Feedback Events . | . . . . Feedback Blocked . | . . . . Robot Schematics Acquired 1 | . 1 . . Robots Built . | . . . . Authchips . | . . . . Time . | . . . . Total Robot Build Rating . | . . . . Part Schematics Acquired . | . . . . Parts Built . | . . . . Authchips . | . . . . Time . | . . . . Total Part Build Rating . | . . . . Part Studies Acquired . | . . . . Parts Repaired . | . . . . Time . | . . . . Parts Recycled . | . . . . Recycled Matter . | . . . . Retrieved Matter . | . . . . Retrieved Components . | . . . . Parts Scanalyzed . | . . . . Part Schematics Acquired . | . . . . Parts Damaged . | . . . . Bothacking | -11 -10 -10 -10 ------------ Run | Yrd Mat Min Sub Used RIF Installer . | . . . . Robots Hacked . | . . . . Non-combat . | . . . . Combat . | . . . . Robot Hacks Applied . | . . . . Relay Couplers Released . | . . . . Fabnet Peak Effective % . | . . . . Robots Rewired . | . . . . Allies Hacked . | . . . . Hacks Repelled . | . . . . Allies | -11 -10 -10 -10 -------- Run | Yrd Mat Min Sub Total Allies . | . . . . Largest Group . | . . . . Highest-Rated Group . | . . . . Highest-Rated Ally . | . . . . Total Orders . | . . . . Ally Attacks . | . . . . Total Damage . | . . . . Kills . | . . . . Allies Corrupted . | . . . . Allies Melted . | . . . . Intel | -11 -10 -10 -10 ------- Run | Yrd Mat Min Sub Active Infowar (turns) 2862 | 24 1246 215 1377 Terrain 49 | . 49 . . Structural 55 | . . . 55 Seismic 2758 | 24 1197 215 1322 Robot Analysis Total . | . . . . Derelict Logs Recovered 3 | . . 1 2 Drone Launches . | . . . . Drone Recoveries . | . . . . Exploration | -11 -10 -10 -10 ------------- Run | Yrd Mat Min Sub Turns Passed 2935 | 95 1246 215 1379 Spaces Moved 1554 | 46 556 124 828 Core 2 | 2 . . . Treads 536 | . 152 124 260 Legs 1016 | 44 404 . 568 Wheels . | . . . . Hover . | . . . . Flight . | . . . . Fastest Speed 50 | 50 120 160 130 Average Speed 151 | 134 168 160 139 Slowest Speed 330 | 190 330 160 160 Overloaded Moves . | . . . . Propulsion Burnouts . | . . . . Robots Hopped . | . . . . Potential Cave-ins . | . . . . Cave-ins Triggered . | . . . . Exploration Rate (%) 51 | 3 93 46 63 Regions Visited 3 Branch Regions 2 Pre-discovered Areas 1 | . . . 1 Known Exits Taken 1 | . . 1 . Unknown Exits Taken 2 | 1 1 . . Scrap Searched 11 | . . . 11 Spaces Dug . | . . . . Terrain Destroyed 277 | . 19 . 258 Melee . | . . . . Projectile . | . . . . AOE 277 | . 19 . 258 Terrain Rammed . | . . . . Walls Destroyed . | . . . . Machines Disabled . | . . . . Actions | -11 -10 -10 -10 --------- Run | Yrd Mat Min Sub Total 1955 | 65 799 140 951 Wait 159 | . 154 . 5 Move 1551 | 45 555 123 828 Hop . | . . . . Pick Up 39 | 7 17 3 12 Fast Attach 13 | 7 3 1 2 Attach 10 | . 3 . 7 Detach . | . . . . Swap 25 | 1 8 3 13 Drop 26 | . 10 7 9 Fire 119 | 5 39 3 72 Melee 13 | . 10 . 3 Ram . | . . . . Kick . | . . . . Crush . | . . . . Escape Stasis . | . . . . Rewire . | . . . . Trap . | . . . . Miscellaneous . | . . . . Route ------- -11/Scrapyard -10/Materials (discovered 5 exits: *Mat x3 / [*Min x2]) -10/Mines (discovered 2 exits: Mat / *Sub) -10/Subcaves (discovered 2 exits: *Mat x2) History --------- Turn | Location | Event 34 | -11/Scrapyard | Discovered new exit (range 15) 96 | -11/Scrapyard | Entered Materials 261 | -10/Materials | Discovered new exit (range 14) 301 | -10/Materials | Build established: Mutant 443 | -10/Materials | Learned 4 Subcaves zone layouts 504 | -10/Materials | Learned Storage trap positions 554 | -10/Materials | Learned location of 2 exits from Mines 596 | -10/Materials | Discovered new exit (range 6) 619 | -10/Materials | Learned 4 Recycling zone layouts 638 | -10/Materials | Learned 4 Recycling zone layouts 666 | -10/Materials | Learned 2 Storage zone layouts 706 | -10/Materials | Learned Storage stockpile data 834 | -10/Materials | Discovered new exit (range 8) 1053 | -10/Materials | Discovered new exit (range 15) 1302 | -10/Materials | Discovered new exit (range 5) 1342 | -10/Materials | Entered Mines 1343 | -10/Mines | Identified exit to Materials 1343 | -10/Mines | Identified exit to Subcaves 1365 | -10/Mines | Learned Materials garrison access intel 1410 | -10/Mines | Found a Scrap Suit stashed away for nefarious purposes 1411 | -10/Mines | Assembled infested the area 1414 | -10/Mines | Found Scrap Suit 1456 | -10/Mines | Joined a pair of Derelicts in attacking an 0b10 outpost 1557 | -10/Mines | Entered Subcaves 1558 | -10/Subcaves | Identified exit to Materials 1565 | -10/Subcaves | Learned location of Zion (-6) 2020 | -10/Subcaves | A Subdweller sparked back to life 2020 | -10/Subcaves | A Subdweller sparked back to life 2062 | -10/Subcaves | Found Prototype Leg 2064 | -10/Subcaves | Identified Cargo Legs 2065 | -10/Subcaves | Attached Cargo Legs, gained temporary slots: Utility x2 2251 | -10/Subcaves | Learned Materials emergency access door positions 2346 | -10/Subcaves | A swath of the cavern ceiling suddenly collapsed 2411 | -10/Subcaves | Shifting Twisted Machinery released Battle Rifle 2414 | -10/Subcaves | Shifting Twisted Machinery released Sub. Shrapnel Launcher 2433 | -10/Subcaves | Ambushed by Subdweller buried in earth 2608 | -10/Subcaves | Shifting Twisted Machinery released Flamer 2620 | -10/Subcaves | Shifting Twisted Machinery released Sub. Optics 2646 | -10/Subcaves | Disturbed a concealed Subdweller 2650 | -10/Subcaves | Core integrity fell below 50% 2887 | -10/Subcaves | Core integrity fell below 20% 2904 | -10/Subcaves | Discovered exit to Materials (range 11) 2936 | -10/Subcaves | Destroyed by G-34 Mercenary with Small Laser Last Messages --------------- Found 43 Matter. Searching scrap... Found Mak. Flight Unit. Found 62 Matter. XM-1WY(R) suffers critical hit (Smash). XM-1WY(R) destroyed. Acquired 10 matter. Searching scrap... Found Sub. Power Source. Found 67 Matter. Seismic Detector destroyed. Destroyed Seismic Detector. UX-KWR(R) destroyed. J7-526(R) destroyed. Acquired 5 matter. EXIT=FOUND: MATERIALS Acquired 28 matter. Acquired Mak. Power Source. Acquired 16 matter. Acquired 36 matter. Map ----- +----------------------------------------------------+ | #????????????###" ###???????????? | | #????????????##" ##???????????? | | ##????????????##" ####???????????? | | "#????????????### "###???????????? | | #????????????### ###???????????? | | " #?????????????## ##???????????? | | ##?????????????### ###???????????? | | ##??????????????### " ###???????????? | | #????????????????###### ######????????????? | | #???????????????#### # #####????????????? | | #???????????????### ###???????????????? | | ????????????????## ## ###???????????????? | | ????????????????## ### ###??????????????? | | ????????????????## ### #####????????????? | | ????????????????## ####????????????? | | ????????????????#### ##????????????? | | ????????????????#### < ###????????????? | | ??????????????????##### ###????????????? | | ??????????????????##### * ##?????????????? | | ?????????????????????## ##?????????????? | | ?????????????????????### ####????????????? | | ???????????????????##### ###????????????? | | ???????????????????###### ;##????????????? | | ???????????????????##;;;# ;##????????????? | | ???????????????????##; ; ;##????????????? | | ???????????????????### @ ###????????????? | | ???????????????????## ; ;;##?????????????? | | ???????????????????### ;; ##?????????????? | | #######????????????##; ;; ##?????????????? | | # #????????###### #####?????????????? | | "" ####???### #####?????????????? | | " #???# gg ###????????????????? | | " ##?? ##???????????????? | | * #?? ##??????????????? | | = "##? ### ## #??????????????? | | " ### ######## #??????????????? | | " " ### ######## #??????????????? | | ##" " ## #??????????????? | | ## " #??????????????? | | #" ### ####??????????????? | | ### ##### #?????????????????? | | " #### #?## #?????????????????? | | #?## ## " ###?# ##????????????????? | | #??### "#""##???# ##???????????????? | | #?????## ] """###### ##??????????????? | | ##??????# " [" ## #??????????????? | | ##???????#""#"# """ ##?????????????? | | #????????## " """ #?????????????? | | ### ##????# "## "## """"" ##?????????????? | | #????######"### " #??????????????? | +----------------------------------------------------+ Best States ------------- Heat Dissipation 25 Energy Generation 15 Energy Capacity 265 Matter Stores 300 Matter Capacity 300 Sight Range 16 Terrain Scan Range 14 Terrain Scan Density 10 Propulsion Shielding 33 Weapon Shielding 33 Evasion (%) 55 Recoil Reduction 2 Item Schematics ----------------- None Robot Schematics ------------------ G-34 Mercenary | -10/Materials | Hacked Fabricated ------------ Nothing Repaired ---------- Nothing Studied --------- None Alien Tech Used ----------------- None Achievements -------------- None Challenges ------------ None Game ------ Seed TerrorBiocellBoregun Manual? 0 Play Time 00:28:01 Cumulative 20.4 hours Start 2026.09.13 @ 13:47:14 End 2026.09.13 @ 14:12:50 Sessions 1 Manual Loads 0 Difficulty Rogue Special Mode None Game No. 40 Rogue 40 Adventurer 0 Explorer 0 Win Type - Total 0 Types 0/0/0/0/0/0/0/0/0/0 Lore% 32 Gallery% 18 Achievement% 16 Wizard Run 0 Options --------- Layout 2 ASCII 0 Keyboard 0 Movement Mouse Keybinds 0 Fullscreen 2 Font 24/Smallcaps Map View 50x44 Zoom Use 0% Tactical HUD 0 Map Filters NONE Filters NONE Steam 1 RUN: f8b0f854-4330-4132-91c2-3e9b0baa7bbe